fUSD/lending_fUSD_20241111
["ID","MTS","AMOUNT","RATE_DAILY","PERIOD"]
[341962351,1731328248167,-151.0,0.00013999,2]
[341962352,1731328248177,-151.0,0.00013999,2]
[341962353,1731328248186,-151.0,0.00013999,2]
[341962354,1731328248196,-620.44,0.00013999,2]
[341962355,1731328248206,-151.0,0.00013999,2]
[341962356,1731328248215,-151.0,0.00013999,2]
[341962357,1731328248225,-217.226776,0.00013999,2]
[341962358,1731328248235,-500.0,0.00013999,2]
[341962359,1731328248245,-500.0,0.00013999,2]
[341962360,1731328248255,-500.0,0.00013999,2]
[341962361,1731328248265,-500.0,0.00013999,2]
[341962362,1731328248275,-500.0,0.00013999,2]
[341962363,1731328248285,-500.0,0.00013999,2]
[341962364,1731328248296,-500.0,0.00013999,2]
[341962365,1731328248306,-500.0,0.00013999,2]
[341962366,1731328248317,-500.0,0.00013999,2]
[341962367,1731328248328,-500.0,0.00013999,2]
[341962368,1731328248338,-500.0,0.00013999,2]
[341962369,1731328248348,-500.0,0.00013999,2]
[341962370,1731328248358,-500.0,0.00013999,2]
[341962371,1731328248368,-500.0,0.00013999,2]
[341962372,1731328248379,-500.0,0.00013999,2]
[341962373,1731328248390,-500.0,0.00013999,2]
[341962374,1731328248400,-353.58,0.00013999,2]
[341962375,1731328248415,-500.0,0.00013999,2]
[341962376,1731328248427,-500.0,0.00013999,2]
[341962377,1731328248437,-500.0,0.00013999,2]
[341962378,1731328248448,-500.0,0.00013999,2]
[341962379,1731328248458,-500.0,0.00013999,2]
[341962380,1731328248468,-500.0,0.00013999,2]
[341962381,1731328248478,-500.0,0.00013999,2]
[341962382,1731328248488,-500.0,0.00013999,2]
[341962383,1731328248500,-500.0,0.00013999,2]
[341962384,1731328248509,-321.4688585,0.00013999,2]
[341962385,1731328248557,-178.5311415,0.00013999,2]
[341962386,1731328248568,-199.36,0.00013999,2]
[341962387,1731328248578,-1330.59,0.00013999,2]
[341962388,1731328248588,-1330.59,0.00013999,2]
[341962389,1731328248598,-1330.59,0.00013999,2]
[341962390,1731328248608,-1330.59,0.00013999,2]
[341962391,1731328248771,-1330.59,0.00013999,2]
[341962392,1731328248787,-1330.59,0.00013999,2]
[341962393,1731328248796,-1330.59,0.00013999,2]
[341962394,1731328248806,-1330.59,0.00013999,2]
[341962395,1731328248815,-1330.59,0.00013999,2]
[341962396,1731328248825,-1330.59,0.00013999,2]
[341962397,1731328248836,-1330.59,0.00013999,2]
[341962398,1731328248846,-151.0,0.00013999,2]
[341962399,1731328248859,-1330.59,0.00013999,2]
[341962400,1731328248868,-1330.59,0.00013999,2]
[341962401,1731328248878,-1330.59,0.00013999,2]
[341962402,1731328248887,-1330.59,0.00013999,2]
[341962403,1731328248899,-1330.59,0.00013999,2]
[341962404,1731328248908,-1330.59,0.00013999,2]
[341962405,1731328248921,-1330.59,0.00013999,2]
[341962406,1731328248932,-1330.77560882,0.00013999,2]
[341962407,1731328248943,-7288.04517368,0.00014,2]
[341962408,1731328248956,-2757.62043846,0.00014,2]
[341962409,1731328248966,-4613.75805742,0.00014,2]
[341962410,1731328249051,-1282.94082167,0.00014,2]
[341962411,1731328249062,-1086.50294638,0.00014,2]
[341962412,1731328249073,-500.0,0.00014,2]
[341962413,1731328249085,-1645.66782878,0.00014,2]
[341962414,1731328249096,-106634.57887404,0.00014,2]
[341962415,1731328275697,156.542,0.0002204,60]
[341962419,1731328633600,178.35,8.219e-05,2]
[341962424,1731328934934,482.16,0.00011007,2]
[341962440,1731329340050,178.35,8.219e-05,2]
[341962453,1731329432238,-250.0,0.00012906,2]
[341962454,1731329432247,-1622.7,0.00012917,2]
[341962455,1731329432256,-470.62,0.0001293,2]
[341962456,1731329432268,-651.76,0.0001293,2]
[341962457,1731329432281,-181.9,0.00013027,2]
[341962458,1731329432291,-705.9,0.00013047,2]
[341962459,1731329432302,-294.1,0.00013047,2]
[341962460,1731329432311,-166.94,0.00013086,2]
[341962461,1731329432322,-668.81,0.00013086,2]
[341962462,1731329432331,-482.16,0.00013271,2]
[341962463,1731329432340,-166.90719337,0.00013699,2]
[341962471,1731329438293,-5840.0,0.00013699,2]
[341962472,1731329438305,-469.45,0.00013699,2]
[341962473,1731329438359,-456.26280663,0.00013699,2]
[341962474,1731329438376,-150.0,0.00013699,2]
[341962475,1731329438387,-300.0,0.00013699,2]
[341962476,1731329438398,-200.0,0.00013699,2]
[341962477,1731329438408,-1428.01026262,0.00013699,2]
[341962478,1731329438420,-515.28705452,0.00013699,2]
[341962479,1731329438433,-766.34341095,0.00013699,2]
[341962480,1731329438446,-1014.56981571,0.00013699,2]
[341962481,1731329438461,-17032.4594562,0.00013699,2]
[341962482,1731329438470,-251.77,0.00013699,2]
[341962483,1731329438479,-482.45,0.00013699,2]
[341962484,1731329438490,-425.63374272,0.00013795,2]
[341962485,1731329438501,-1951.2777,0.000138,2]
[341962486,1731329438510,-4996.0827,0.000138,2]
[341962487,1731329438519,-187.79683604,0.000138,2]
[341962488,1731329438528,-182.07906296,0.000138,2]
[341962489,1731329438537,-187.79683604,0.00013811,2]
[341962490,1731329438546,-187.79683604,0.00013822,2]
[341962491,1731329438555,-187.79683604,0.00013833,2]
[341962492,1731329438565,-187.79683604,0.00013844,2]
[341962493,1731329438575,-187.79683604,0.00013856,2]
[341962494,1731329438585,-220.14,0.00013861,2]
[341962495,1731329438595,-187.79683604,0.00013867,2]
[341962496,1731329438605,-500.47591291,0.00013873,2]
[341962497,1731329438615,-160.42754665,0.00013873,2]
[341962498,1731329438625,-403.47834705,0.00013873,2]
[341962499,1731329438635,-202.35734918,0.00013873,2]
[341962500,1731329438647,-187.79683604,0.00013878,2]
[341962501,1731329438657,-21663.958,0.0001388,2]
[341962502,1731329438668,-2836.357,0.0001388,2]
[341962503,1731329438678,-3077.8386,0.0001388,2]
[341962504,1731329438687,-1000.0,0.0001388,2]
[341962505,1731329438891,-634.9396,0.0001388,2]
[341962506,1731329438902,-187.79683604,0.00013889,2]
[341962507,1731329438911,-186.72,0.0001389,3]
[341962508,1731329438921,-560.21,0.0001389,3]
[341962509,1731329438930,-380.87590472,0.00013899,2]
[341962510,1731329438939,-152.94656242,0.00013899,2]
[341962511,1731329438948,-500.0,0.00013899,2]
[341962512,1731329438958,-500.0,0.00013899,2]
[341962513,1731329438968,-500.0,0.00013899,2]
[341962514,1731329438977,-500.0,0.00013899,2]
[341962515,1731329438987,-518.6,0.00013899,2]
[341962516,1731329438996,-283.84277527,0.00013899,2]
[341962517,1731329439005,-500.0,0.00013899,2]
[341962518,1731329439015,-500.0,0.00013899,2]
[341962519,1731329439024,-500.0,0.00013899,2]
[341962520,1731329439034,-500.0,0.00013899,2]
[341962521,1731329439043,-500.0,0.00013899,2]
[341962522,1731329439052,-500.0,0.00013899,2]
[341962523,1731329439061,-500.0,0.00013899,2]
[341962524,1731329439071,-500.0,0.00013899,2]
[341962525,1731329439080,-500.0,0.00013899,2]
[341962526,1731329439091,-500.0,0.00013899,2]
[341962527,1731329439100,-500.0,0.00013899,2]
[341962528,1731329439110,-500.0,0.00013899,2]
[341962529,1731329439120,-500.0,0.00013899,2]
[341962530,1731329439129,-500.0,0.00013899,2]
[341962531,1731329439141,-500.0,0.00013899,2]
[341962532,1731329439151,-500.0,0.00013899,2]
[341962533,1731329439161,-500.0,0.00013899,2]
[341962534,1731329439171,-500.0,0.00013899,2]
[341962535,1731329439181,-500.0,0.00013899,2]
[341962536,1731329439195,-536.97,0.00013899,2]
[341962537,1731329439205,-500.0,0.00013899,2]
[341962538,1731329439215,-500.0,0.00013899,2]
[341962539,1731329439224,-500.0,0.00013899,2]
[341962540,1731329439233,-500.0,0.00013899,2]
[341962541,1731329439243,-500.0,0.00013899,2]
[341962542,1731329439253,-500.0,0.00013899,2]
[341962543,1731329439262,-3547.62,0.00013899,2]
[341962544,1731329439272,-274.67753563,0.00013899,2]
[341962545,1731329439286,-329.7472121,0.00013899,2]
[341962546,1731329439296,-500.0,0.00013899,2]
[341962547,1731329439306,-1876.33,0.00013899,2]
[341962548,1731329439315,-500.0,0.00013899,2]
[341962549,1731329439325,-500.0,0.00013899,2]
[341962550,1731329439335,-418.40011854,0.00013899,2]
[341962551,1731329439345,-500.0,0.00013899,2]
[341962552,1731329439356,-500.0,0.00013899,2]
[341962553,1731329439366,-500.0,0.00013899,2]
[341962554,1731329439375,-500.0,0.00013899,2]
[341962555,1731329439385,-426.9,0.00013899,2]
[341962556,1731329439399,-500.0,0.00013899,2]
[341962557,1731329439409,-500.0,0.00013899,2]
[341962558,1731329439418,-500.0,0.00013899,2]
[341962559,1731329439427,-625.24,0.00013899,2]
[341962560,1731329439437,-500.0,0.00013899,2]
[341962561,1731329439446,-500.0,0.00013899,2]
[341962562,1731329439456,-500.0,0.00013899,2]
[341962563,1731329439466,-512.78140359,0.00013899,2]
[341962564,1731329439476,-500.0,0.00013899,2]
[341962565,1731329439486,-500.0,0.00013899,2]
[341962566,1731329439496,-214.67283058,0.00013899,2]
[341962567,1731329439505,-500.0,0.00013899,2]
[341962568,1731329439516,-500.0,0.00013899,2]
[341962569,1731329439525,-500.0,0.00013899,2]
[341962570,1731329439534,-500.0,0.00013899,2]
[341962571,1731329439544,-500.0,0.00013899,2]
[341962572,1731329439553,-648.07544248,0.00013899,2]
[341962573,1731329439564,-500.0,0.00013899,2]
[341962574,1731329439575,-500.0,0.00013899,2]
[341962575,1731329439585,-500.0,0.00013899,2]
[341962576,1731329439595,-530.41,0.00013899,2]
[341962577,1731329439604,-500.0,0.00013899,2]
[341962578,1731329439614,-170.82128956,0.00013899,2]
[341962579,1731329439623,-500.0,0.00013899,2]
[341962580,1731329439633,-500.0,0.00013899,2]
[341962581,1731329439646,-500.0,0.00013899,2]
[341962582,1731329439656,-521.04,0.00013899,2]
[341962583,1731329439669,-500.0,0.00013899,2]
[341962584,1731329439690,-335.245,0.00013899,2]
[341962585,1731329439705,-500.0,0.00013899,2]
[341962586,1731329439714,-1832.29,0.00013899,2]
[341962587,1731329439724,-500.0,0.00013899,2]
[341962588,1731329439733,-500.0,0.00013899,2]
[341962589,1731329439743,-500.0,0.00013899,2]
[341962590,1731329439753,-500.0,0.00013899,2]
[341962591,1731329439762,-500.0,0.00013899,2]
[341962592,1731329439772,-500.0,0.00013899,2]
[341962593,1731329439782,-3900.02,0.00013899,2]
[341962594,1731329439791,-500.0,0.00013899,2]
[341962595,1731329439801,-7312.87,0.00013899,2]
[341962596,1731329439810,-735.38,0.00013899,2]
[341962597,1731329439820,-552.19,0.00013899,2]
[341962598,1731329439829,-500.0,0.00013899,2]
[341962599,1731329439838,-232.32,0.00013899,2]
[341962600,1731329439847,-500.0,0.00013899,2]
[341962601,1731329439856,-500.0,0.00013899,2]
[341962602,1731329439866,-500.0,0.00013899,2]
[341962603,1731329439876,-500.0,0.00013899,2]
[341962604,1731329439885,-500.0,0.00013899,2]
[341962605,1731329439897,-500.0,0.00013899,2]
[341962606,1731329439907,-500.0,0.00013899,2]
[341962607,1731329439915,-500.0,0.00013899,2]
[341962608,1731329439925,-309.34,0.00013899,2]
[341962609,1731329439935,-500.0,0.00013899,2]
[341962610,1731329439945,-500.0,0.00013899,2]
[341962611,1731329439954,-500.0,0.00013899,2]
[341962612,1731329439963,-500.0,0.00013899,2]
[341962613,1731329439972,-500.0,0.00013899,2]
[341962614,1731329439982,-500.0,0.00013899,2]
[341962615,1731329439991,-500.0,0.00013899,2]
[341962616,1731329440001,-500.0,0.00013899,2]
[341962617,1731329440010,-500.0,0.00013899,2]
[341962618,1731329440019,-500.0,0.00013899,2]
[341962619,1731329440029,-601.48,0.00013899,2]
[341962620,1731329440039,-500.0,0.00013899,2]
[341962621,1731329440049,-500.0,0.00013899,2]
[341962622,1731329440058,-500.0,0.00013899,2]
[341962623,1731329440068,-500.0,0.00013899,2]
[341962624,1731329440078,-500.0,0.00013899,2]
[341962625,1731329440088,-216.74246096,0.00013899,2]
[341962626,1731329440098,-500.0,0.00013899,2]
[341962627,1731329440107,-500.0,0.00013899,2]
[341962628,1731329440117,-500.0,0.00013899,2]
[341962629,1731329440126,-500.0,0.00013899,2]
[341962630,1731329440135,-500.0,0.00013899,2]
[341962631,1731329440149,-500.0,0.00013899,2]
[341962632,1731329440158,-500.0,0.00013899,2]
[341962633,1731329440168,-222.93,0.00013899,2]
[341962634,1731329440178,-500.0,0.00013899,2]
[341962635,1731329440188,-213.64,0.00013899,2]
[341962636,1731329440197,-500.0,0.00013899,2]
[341962637,1731329440207,-500.0,0.00013899,2]
[341962638,1731329440217,-500.0,0.00013899,2]
[341962639,1731329440226,-500.0,0.00013899,2]
[341962640,1731329440236,-500.0,0.00013899,2]
[341962641,1731329440246,-726.95,0.00013899,2]
[341962642,1731329440256,-500.0,0.00013899,2]
[341962643,1731329440266,-181.77798228,0.00013899,2]
[341962644,1731329440278,-500.0,0.00013899,2]
[341962645,1731329440288,-500.0,0.00013899,2]
[341962646,1731329440298,-500.0,0.00013899,2]
[341962647,1731329440307,-500.0,0.00013899,2]
[341962648,1731329440317,-500.0,0.00013899,2]
[341962649,1731329440327,-500.0,0.00013899,2]
[341962650,1731329440337,-1530.76,0.00013899,2]
[341962651,1731329440347,-500.0,0.00013899,2]
[341962652,1731329440357,-500.0,0.00013899,2]
[341962653,1731329440367,-2335.07,0.00013899,2]
[341962654,1731329440377,-500.0,0.00013899,2]
[341962655,1731329440387,-447.66989295,0.00013899,2]
[341962656,1731329440403,-500.0,0.00013899,2]
[341962657,1731329440412,-500.0,0.00013899,2]
[341962658,1731329440422,-500.0,0.00013899,2]
[341962659,1731329440431,-500.0,0.00013899,2]
[341962660,1731329440440,-500.0,0.00013899,2]
[341962661,1731329440450,-500.0,0.00013899,2]
[341962662,1731329440459,-500.0,0.00013899,2]
[341962663,1731329440469,-500.0,0.00013899,2]
[341962664,1731329440478,-500.0,0.00013899,2]
[341962665,1731329440488,-500.0,0.00013899,2]
[341962666,1731329440498,-500.0,0.00013899,2]
[341962667,1731329440507,-197916.0634,0.000139,2]
[341962668,1731329440517,-187.79683604,0.000139,2]
[341962669,1731329440526,-210.0,0.000139,2]
[341962670,1731329440535,-182.07906296,0.000139,2]
[341962671,1731329440544,-1632.04168777,0.000139,2]
[341962672,1731329440554,-1632.04168777,0.000139,2]
[341962673,1731329440563,-1632.04168777,0.000139,2]
[341962674,1731329440572,-1632.04168777,0.000139,2]
[341962675,1731329440581,-1632.04168777,0.000139,2]
[341962676,1731329440591,-1632.04168777,0.000139,2]
[341962677,1731329440600,-1632.04168777,0.000139,2]
[341962678,1731329440610,-1632.04168777,0.000139,2]
[341962679,1731329440619,-1632.04168777,0.000139,2]
[341962680,1731329440628,-1632.04168777,0.000139,2]
[341962681,1731329440637,-1632.04168777,0.000139,2]
[341962682,1731329440649,-1632.04168777,0.000139,2]
[341962683,1731329440658,-1632.04168777,0.000139,2]
[341962684,1731329440667,-1632.04168777,0.000139,2]
[341962685,1731329440677,-1632.04168777,0.000139,2]
[341962686,1731329440686,-1632.04168777,0.000139,2]
[341962687,1731329440696,-1632.04168777,0.000139,2]
[341962688,1731329440705,-1632.04168777,0.000139,2]
[341962689,1731329440716,-1632.04168777,0.000139,2]
[341962690,1731329440725,-1632.04,0.000139,2]
[341962691,1731329440734,-2448.06253166,0.000139,2]
[341962692,1731329440744,-2448.06253166,0.000139,2]
[341962693,1731329440754,-2448.06253166,0.000139,2]
[341962694,1731329440766,-2448.06253166,0.000139,2]
[341962695,1731329440778,-2448.06253166,0.000139,2]
[341962696,1731329440792,-2448.06253166,0.000139,2]
[341962697,1731329440804,-2448.06253166,0.000139,2]
[341962698,1731329440817,-2448.06253166,0.000139,2]
[341962699,1731329440827,-2448.06253166,0.000139,2]
[341962700,1731329440837,-2448.06253166,0.000139,2]
[341962701,1731329440849,-2448.06253166,0.000139,2]
[341962702,1731329440860,-2448.06253166,0.000139,2]
[341962703,1731329440872,-2448.06253166,0.000139,2]
[341962704,1731329440883,-2448.06253166,0.000139,2]
[341962705,1731329440897,-2448.06253166,0.000139,2]
[341962706,1731329440909,-2448.06253166,0.000139,2]
[341962707,1731329440921,-2448.06253166,0.000139,2]
[341962708,1731329440933,-2448.06253166,0.000139,2]
[341962709,1731329440946,-2448.06253166,0.000139,2]
[341962710,1731329440958,-2448.06,0.000139,2]
[341962711,1731329440969,-626.35315419,0.000139,2]
[341962712,1731329440980,-165.05200337,0.00013973,2]
[341962713,1731329440991,-504.90160733,0.00013973,2]
[341962714,1731329441002,-260.5300956,0.00013973,2]
[341962715,1731329441012,-483.83249959,0.00013973,2]
[341962716,1731329441024,-500.0,0.00013973,2]
[341962717,1731329441036,-500.0,0.00013973,2]
[341962718,1731329441048,-500.0,0.00013973,2]
[341962719,1731329441060,-1220.0,0.00013973,2]
[341962720,1731329441072,-500.0,0.00013978,2]
[341962721,1731329441083,-199.96,0.00013979,2]
[341962722,1731329441096,-500.0,0.00013979,2]
[341962723,1731329441107,-500.0,0.00013979,2]
[341962724,1731329441119,-500.0,0.00013979,2]
[341962725,1731329441131,-500.0,0.00013979,2]
[341962726,1731329441145,-500.0,0.00013979,2]
[341962727,1731329441157,-253.01456156,0.00013979,2]
[341962728,1731329441170,-222.40889837,0.00013979,2]
[341962729,1731329441182,-503.89197665,0.00013979,2]
[341962730,1731329441193,-500.0,0.00013979,2]
[341962731,1731329441205,-500.0,0.00013979,2]
[341962732,1731329441215,-500.0,0.00013979,2]
[341962733,1731329441227,-465.42498712,0.00013979,2]
[341962734,1731329441244,-34.57501288,0.00013979,2]
[341962735,1731329441255,-291.87498712,0.00013979,2]
[341962736,1731329441269,-208.12501288,0.00013979,2]
[341962737,1731329441282,-500.0,0.00013979,2]
[341962738,1731329441294,-500.0,0.00013979,2]
[341962739,1731329441305,-250.78,0.00013979,2]
[341962740,1731329441316,-501.34068387,0.00013979,2]
[341962741,1731329441326,-244.22844896,0.00013979,2]
[341962742,1731329441337,-501.75752681,0.00013979,2]
[341962743,1731329441347,-259.69237661,0.00013979,2]
[341962744,1731329441360,-492.09629434,0.00013979,2]
[341962745,1731329441378,-504.01278027,0.00013979,2]
[341962746,1731329441394,-500.0,0.00013979,2]
[341962747,1731329441407,-500.0,0.00013979,2]
[341962748,1731329441417,-271.83708462,0.00013979,2]
[341962749,1731329441427,-500.09999999,0.00013979,2]
[341962750,1731329441437,-500.0,0.00013979,2]
[341962751,1731329441447,-500.0,0.00013979,2]
[341962752,1731329441458,-500.0,0.00013979,2]
[341962753,1731329441469,-500.0,0.00013979,2]
[341962754,1731329441480,-500.0,0.00013979,2]
[341962755,1731329441492,-500.0,0.00013979,2]
[341962756,1731329441503,-500.0,0.00013979,2]
[341962757,1731329441514,-500.0,0.00013979,2]
[341962758,1731329441524,-500.0,0.00013979,2]
[341962759,1731329441534,-500.0,0.00013979,2]
[341962760,1731329441544,-2000.0,0.00013979,2]
[341962761,1731329441554,-2000.0,0.00013979,2]
[341962762,1731329441566,-500.0,0.00013979,2]
[341962763,1731329441577,-500.0,0.00013979,2]
[341962764,1731329441587,-500.0,0.00013979,2]
[341962765,1731329441597,-500.0,0.00013979,2]
[341962766,1731329441607,-500.0,0.00013979,2]
[341962767,1731329441618,-500.0,0.00013979,2]
[341962768,1731329441628,-500.0,0.00013979,2]
[341962769,1731329441638,-500.0,0.00013979,2]
[341962770,1731329441652,-500.0,0.00013979,2]
[341962771,1731329441662,-500.0,0.00013979,2]
[341962772,1731329441672,-500.0,0.00013979,2]
[341962773,1731329441683,-280.24,0.00013979,2]
[341962774,1731329441694,-500.0,0.00013979,2]
[341962775,1731329441705,-500.0,0.00013979,2]
[341962776,1731329441716,-321.3557891,0.00013979,2]
[341962777,1731329441726,-557.82772805,0.00013979,2]
[341962778,1731329441737,-586.56835622,0.00013979,2]
[341962779,1731329441747,-500.0,0.00013979,2]
[341962780,1731329441758,-159.21,0.00013979,2]
[341962781,1731329441769,-500.0,0.00013979,2]
[341962782,1731329441779,-500.0,0.00013979,2]
[341962783,1731329441790,-386.77,0.00013979,2]
[341962784,1731329441800,-47.43722772,0.00013979,2]
[341962785,1731329441814,-452.56277228,0.00013979,2]
[341962786,1731329441825,-110.02177311,0.00013979,2]
[341962787,1731329441838,-389.97822689,0.00013979,2]
[341962788,1731329441848,-52.27177311,0.00013979,2]
[341962789,1731329441861,-447.72822689,0.00013979,2]
[341962790,1731329441871,-618.7,0.00013979,2]
[341962791,1731329441883,-500.0,0.00013979,2]
[341962792,1731329441894,-275.71,0.00013979,2]
[341962793,1731329441905,-600.66,0.00013979,2]
[341962794,1731329441918,-500.0,0.00013979,2]
[341962795,1731329441931,-545.98,0.00013979,2]
[341962796,1731329441946,-500.0,0.00013979,2]
[341962797,1731329441959,-500.0,0.00013979,2]
[341962798,1731329441970,-500.0,0.00013979,2]
[341962799,1731329441980,-500.0,0.00013979,2]
[341962800,1731329441991,-500.0,0.00013979,2]
[341962801,1731329442001,-500.0,0.00013979,2]
[341962802,1731329442012,-500.0,0.00013979,2]
[341962803,1731329442023,-500.0,0.00013979,2]
[341962804,1731329442034,-421.46149916,0.00013979,2]
[341962805,1731329442047,-78.53850084,0.00013979,2]
[341962806,1731329442058,-500.0,0.00013979,2]
[341962807,1731329442069,-500.0,0.00013979,2]
[341962808,1731329442080,-500.0,0.00013979,2]
[341962809,1731329442091,-500.0,0.00013979,2]
[341962810,1731329442102,-500.0,0.00013979,2]
[341962811,1731329442113,-391.02809769,0.00013979,2]
[341962812,1731329442127,-108.97190231,0.00013979,2]
[341962813,1731329442137,-350.77809769,0.00013979,2]
[341962814,1731329442154,-149.22190231,0.00013979,2]
[341962815,1731329442164,-500.0,0.00013979,2]
[341962816,1731329442175,-310.50278216,0.00013979,2]
[341962817,1731329442188,-46.91721784,0.00013979,2]
[341962818,1731329442199,-500.0,0.00013979,2]
[341962819,1731329442210,-503.86554967,0.00013979,2]
[341962820,1731329442220,-500.0,0.00013979,2]
[341962821,1731329442231,-40.21723248,0.00013979,2]
[341962822,1731329442243,-114.36198342,0.00013979,2]
[341962823,1731329442255,-500.0,0.00013979,2]
[341962824,1731329442265,-500.0,0.00013979,2]
[341962825,1731329442277,-500.0,0.00013979,2]
[341962826,1731329442288,-500.0,0.00013979,2]
[341962827,1731329442299,-500.0,0.00013979,2]
[341962828,1731329442310,-46.44325735,0.00013979,2]
[341962829,1731329442331,-459.16489918,0.00013979,2]
[341962830,1731329442342,-25.2741546,0.00013979,2]
[341962831,1731329442355,-474.7258454,0.00013979,2]
[341962832,1731329442366,-500.0,0.00013979,2]
[341962833,1731329442377,-501.80046766,0.00013979,2]
[341962834,1731329442387,-500.0,0.00013979,2]
[341962835,1731329442400,-65.80293345,0.00013979,2]
[341962836,1731329442490,-432.90000012,0.00013979,2]
[341962837,1731329442508,-1.29706643,0.00013979,2]
[341962838,1731329442518,-500.0,0.00013979,2]
[341962839,1731329442529,-463.05840235,0.00013979,2]
[341962840,1731329442542,-36.94159765,0.00013979,2]
[341962841,1731329442553,-244.24514435,0.00013979,2]
[341962842,1731329442566,-255.75485565,0.00013979,2]
[341962843,1731329442577,-500.0,0.00013979,2]
[341962844,1731329442588,-500.0,0.00013979,2]
[341962845,1731329442598,-221.50756847,0.00013979,2]
[341962846,1731329442609,-500.0,0.00013979,2]
[341962847,1731329442620,-500.0,0.00013979,2]
[341962848,1731329442631,-500.0,0.00013979,2]
[341962849,1731329442643,-852.0356316,0.00013987,2]
[341962850,1731329442654,-27.82964306,0.00013987,2]
[341962851,1731329442670,-2610.24109294,0.00013987,2]
[341962852,1731329442682,-817.48868,0.0001399,2]
[341962853,1731329442694,-2536.9367403,0.0001399,2]
[341962854,1731329442706,-500.0,0.00013997,2]
[341962855,1731329442716,-500.0,0.00013997,2]
[341962856,1731329442725,-500.0,0.00013997,2]
[341962857,1731329442734,-500.0,0.00013997,2]
[341962858,1731329442745,-500.8231102,0.00013997,2]
[341962859,1731329442757,-500.0,0.00013997,2]
[341962860,1731329442766,-500.0,0.00013997,2]
[341962861,1731329442775,-423.22294979,0.00013997,2]
[341962862,1731329442785,-1832.29,0.00013997,2]
[341962863,1731329442794,-45.61095863,0.00013997,2]
[341962867,1731329443053,-372.38190116,0.00013997,2]
[341962868,1731329443065,-82.00714021,0.00013997,2]
[341962869,1731329443074,-500.0,0.00013997,2]
[341962870,1731329443084,-500.0,0.00013997,2]
[341962872,1731329443093,-101.19285979,0.00013997,2]
[341962873,1731329443119,-398.80714021,0.00013997,2]
[341962874,1731329443129,-3900.02,0.00013997,2]
[341962875,1731329443138,-1364.17835833,0.00013997,2]
[341962877,1731329443157,-5948.69164167,0.00013997,2]
[341962879,1731329443166,-735.38,0.00013997,2]
[341962881,1731329443176,-500.0,0.00013997,2]
[341962882,1731329443185,-365.66565424,0.00013997,2]
[341962883,1731329443195,-500.0,0.00013997,2]
[341962884,1731329443205,-500.0,0.00013997,2]
[341962885,1731329443214,-506.12,0.00013997,2]
[341962886,1731329443224,-205.65845458,0.00013997,2]
[341962887,1731329443233,-500.0,0.00013997,2]
[341962888,1731329443242,-500.0,0.00013997,2]
[341962889,1731329443251,-500.0,0.00013997,2]
[341962890,1731329443261,-500.0,0.00013997,2]
[341962891,1731329443271,-500.0,0.00013997,2]
[341962892,1731329443283,-500.0,0.00013997,2]
[341962893,1731329443293,-500.0,0.00013997,2]
[341962894,1731329443302,-500.0,0.00013997,2]
[341962895,1731329443312,-500.0,0.00013997,2]
[341962896,1731329443321,-500.0,0.00013997,2]
[341962897,1731329443331,-726.95,0.00013997,2]
[341962898,1731329443340,-595.55131438,0.00013997,2]